Cogmind - Beta 10.2 @@@ ROGUE MODE // 2021.07.30 @ 17:18:01 Player: Wiperd Result: Destroyed by S-10 Pest with Light Assault Rifle Performance ------------- Evolutions (1) 500 Regions Visited (2) 400 Robots Destroyed (22) 110 Value Destroyed (468) 468 Prototype IDs (0) 0 Alien Tech Used (0) 0 Bonus (0) 0 TOTAL SCORE: 1478 Bonus ------- None Cogmind --------- Core Integrity 0/400 Matter 209/300 Energy 100/100 System Corruption 4% Temperature Cool (0) Movement Walking (120) Location -9/Materials Parts ------- > --- POWER (2) -------- (None) > --- PROPULSION (3) --- Aluminum Leg > --- UTILITY (2) ------ Medium Storage Unit > --- WEAPON (2) ------- (None) > --- INVENTORY (8) ---- (None) Peak State ------------ > --- POWER ------------ Ion Engine Light Ion Engine > --- PROPULSION ------- Armored Treads Armored Treads Armored Treads > --- UTILITY ---------- Medium Storage Unit ECM Suite > --- WEAPON ----------- Light Assault Rifle Grenade Launcher > --- INVENTORY -------- Light Ion Engine Aluminum Leg Aluminum Leg Aluminum Leg Aluminum Leg Aluminum Leg Assault Rifle [Rating: 15] Favorites ----------- Power Light Ion Engine Engine Light Ion Engine Propulsion Aluminum Leg Treads Armored Treads Leg Aluminum Leg Utility Medium Storage Unit Device ECM Suite Storage Medium Storage Unit Weapon Light Assault Rifle Ballistic Gun Light Assault Rifle Launcher Grenade Launcher Build | -11 -10 -9 ------- Run | Scr Mat Mat Slots Evolved 2 | . . 2 Power 1 | . . 1 Propulsion 1 | . . 1 Utility . | . . . Weapon . | . . . Parts Attached 24 | 5 5 14 Power 4 | 1 . 3 Engine 4 | 1 . 3 Core . | . . . Reactor . | . . . Propulsion 12 | 2 3 7 Treads 5 | . . 5 Leg 7 | 2 3 2 Wheel . | . . . Hover . | . . . Flight . | . . . Utility 2 | . 1 1 Device 1 | . . 1 Storage 1 | . 1 . Processor . | . . . Hackware . | . . . Protection . | . . . Artifact . | . . . Weapon 6 | 2 1 3 Energy Gun . | . . . Energy Cannon . | . . . Ballistic Gun 5 | 2 . 3 Ballistic Cannon . | . . . Launcher 1 | . 1 . Special Weapon . | . . . Impact Weapon . | . . . Slashing Weapon . | . . . Piercing Weapon . | . . . Special Melee Weapon . | . . . Unidentified Prototypes . | . . . Parts Lost 15 | . 1 14 Power 4 | . . 4 Propulsion 5 | . 1 4 Utility 1 | . . 1 Weapon 5 | . . 5 Highest Loss Streak 14 | . 1 14 Average Slot Usage (%) 82 | . 83 78 Engine 14 | . 14 16 Treads 7 | . . 24 Leg 20 | . 27 5 Device 2 | . . 6 Storage 12 | . 13 11 Ballistic Gun 16 | . 19 8 Launcher 7 | . 8 5 Naked Turns . | . . . Heaviest Build 21 | 6 15 21 Greatest Support 60 | 20 20 60 Greatest Overweight (x) 4 | . 4 2 Average Overweight (x) . | . . . Largest Inventory Capacity 8 | 4 8 8 Average Capacity 7 | 4 7 8 Most Carried 7 | 2 6 7 Average Carried 3 | . 4 3 Final Capacity 8 | 4 8 8 Final Carried 6 | 2 6 . Class Distribution -------------------- 100% | Mutant Dominant Class ---------------- Mutant | -10/Materials Mutant | -9/Materials Resources | -11 -10 -9 ----------- Run | Scr Mat Mat Matter Collected 571 | 266 221 84 Remotely . | . . . Salvage Created 532 | 54 396 82 Parts 34 | 3 20 11 Haulers Intercepted . | . . . Recyclers Shooed . | . . . Parts Field Recycled . | . . . Retrieved Matter . | . . . Parts Self-Destructed . | . . . Prevented . | . . . Kills | -11 -10 -9 ------- Run | Scr Mat Mat Combat Hostiles Destroyed 13 | 1 8 4 Melee 1 | . . 1 Guns 6 | 1 3 2 AOE 6 | . 5 1 Classes Destroyed 9 | 2 5 2 Worker 1 | . . 1 Builder 1 | . 1 . Tunneler 1 | 1 . . Recycler 2 | . 2 . Operator 1 | . 1 . Watcher 3 | . 3 . Swarmer 5 | . 2 3 Grunt 7 | 1 6 . Sentry 1 | . . 1 Best Kill Streak 8 | 2 8 2 Combat Bots Only 2 | 1 2 2 Max Kills in Single Turn 2 | 2 1 1 Gunslinging . | . . . Exploded 1 | . 1 1 Melee 1 | . . 1 Uniques/NPCs Destroyed . | . . . Combat | -11 -10 -9 -------- Run | Scr Mat Mat Damage Taken 2717 | 43 560 2114 Core 545 | 11 131 403 Absorbed by Shields . | . . . Core Remaining (%) 69 | 95 43 . Volleys Fired 60 | 4 41 15 Largest 2 | 2 2 2 Hottest 50 | 40 50 50 Shots Fired 101 | 8 72 21 Gun 81 | 8 56 17 Cannon . | . . . Launcher 20 | . 16 4 Special . | . . . Kinetic 81 | 8 56 17 Thermal . | . . . Explosive 20 | . 16 4 Electromagnetic . | . . . Robot Hit Streak 6 | 2 6 5 Robot Miss Streak 6 | 1 6 2 Penetration Max . | . . . Secondary Targets . | . . . Shots Hit Robots 54 | 4 37 13 Core Hits 46 | 3 33 10 Critical Hits . | . . . Critical Kills . | . . . Critical Parts Destroyed . | . . . Melee Attacks . | . . . Impact . | . . . Slashing . | . . . Piercing . | . . . Sneak Attacks . | . . . Combat Hostiles . | . . . Follow-up Attacks . | . . . Damage Inflicted 1393 | 48 1157 188 Guns 424 | 48 265 111 Cannons . | . . . Explosions 956 | . 892 64 Melee . | . . . Ramming 13 | . . 13 Kinetic 424 | 48 265 111 Thermal . | . . . Explosive 956 | . 892 64 Electromagnetic . | . . . Impact . | . . . Slashing . | . . . Piercing . | . . . Highest Corruption 4 | . 2 4 Average Corruption 2 | . 2 4 Corruption Purged . | . . . Effects 12 | . 9 3 Message Errors 4 | . 3 1 Heat Flow Errors 2 | . 2 . Energy Discharges 1 | . 1 . Data Loss (minor) 4 | . 2 2 Targeting Errors 1 | . 1 . Overload Shots . | . . . Overflow Damage 25 | . 14 11 Projectiles . | . . . Explosions 25 | . 14 11 Melee . | . . . Knockbacks . | . . . Impact . | . . . Kinetic . | . . . Secondary . | . . . Self-Inflicted Damage 150 | . 109 41 Shots 6 | . 5 1 Rammed 8 | . . 8 Targets Rammed 9 | . . 9 Kicked . | . . . Crushed 1 | . . 1 Highest Temperature 163 | 6 163 24 Average Temperature 21 | 6 26 9 Received Heat Transfer 300 | 24 108 168 Siege Activations . | . . . Robots Corrupted . | . . . Combat Hostiles . | . . . Parts Fried . | . . . Impact Corruptions . | . . . Robots Melted . | . . . Combat Hostiles . | . . . Parts Melted . | . . . Heat Transferred . | . . . Parts Sabotaged . | . . . Parts Stolen . | . . . Parts Stripped . | . . . Power Chain Reactions . | . . . Missiles Intercepted . | . . . Alert | -11 -10 -9 ------- Run | Scr Mat Mat Peak Influence 252 | 25 252 152 Initial 52 | . 16 52 Average 79 | 5 80 101 Maximum Alert Level 1 | . 1 . Low Security (%) 96 | 100 94 100 Level 1 3 | . 5 . Level 2 . | . . . Level 3 . | . . . Level 4 . | . . . Level 5 . | . . . High Security . | . . . Max Security . | . . . Squads Dispatched 6 | . 4 2 Investigation 2 | . 1 1 Extermination . | . . . Reinforcement 4 | . 3 1 Assault . | . . . Garrison . | . . . Intercept . | . . . Construction Impeded . | . . . Haulers Reinforced . | . . . Stealth | -11 -10 -9 --------- Run | Scr Mat Mat Distress Signals 2 | . 2 . Communications Jammed . | . . . Distress Signals . | . . . Times Spotted 41 | 1 16 24 Peak Tracking Total 10 | 1 6 10 Tactical Retreats 3 | . 1 2 Traps | -11 -10 -9 ------- Run | Scr Mat Mat Traps Triggered 3 | . 2 1 Indirectly . | . . . Trap Hack Attempts . | . . . Triggered . | . . . Disarmed . | . . . Reprogrammed . | . . . Reused . | . . . Traps Extracted . | . . . Installed . | . . . Triggered . | . . . Machines | -11 -10 -9 ---------- Run | Scr Mat Mat Machines Disabled 2 | . . 2 Max in Single Turn 2 | . . 2 Machines Sabotaged . | . . . Garrisons Compromised . | . . . Overloaded Fab Kills . | . . . Fab Network Shutdowns . | . . . Hacking | -11 -10 -9 --------- Run | Scr Mat Mat Machines Accessed 1 | . 1 . Terminals 1 | . 1 . Fabricators . | . . . Repair Stations . | . . . Recycling Units . | . . . Scanalyzers . | . . . Garrison Access . | . . . Total Hacks 2 | . 2 . Successful 2 | . 2 . Failed . | . . . Catastrophic . | . . . Database Lockouts . | . . . Manual . | . . . Terminals 2 | . 2 . Fabricators . | . . . Repair Stations . | . . . Recycling Units . | . . . Scanalyzers . | . . . Garrison Access . | . . . Terminal Hacks 2 | . 2 . Registered Prototypes 1 | . 1 . Zone Layout 1 | . 1 . Fabricator Hacks . | . . . Repair Station Hacks . | . . . Recycling Unit Hacks . | . . . Scanalyzer . | . . . Garrison Access Hacks . | . . . Unauthorized Hacks . | . . . Terminals . | . . . Fabricators . | . . . Repair Stations . | . . . Recycling Units . | . . . Scanalyzers . | . . . Garrison Access . | . . . Data Cores Recovered . | . . . Used . | . . . Hacking Detections . | . . . Full Trace Events . | . . . Feedback Events . | . . . Feedback Blocked . | . . . Robot Schematics Acquired . | . . . Robots Built . | . . . Matter . | . . . Time . | . . . Total Robot Build Rating . | . . . Part Schematics Acquired . | . . . Parts Built . | . . . Matter . | . . . Time . | . . . Total Part Build Rating . | . . . Parts Repaired . | . . . Time . | . . . Parts Recycled . | . . . Recycled Matter . | . . . Retrieved Matter . | . . . Retrieved Components . | . . . Parts Scanalyzed . | . . . Part Schematics Acquired . | . . . Parts Damaged . | . . . Bothacking | -11 -10 -9 ------------ Run | Scr Mat Mat Used RIF Installer . | . . . Robots Hacked . | . . . Non-combat . | . . . Combat . | . . . Robot Hacks Applied . | . . . Relay Couplers Released . | . . . Robots Rewired . | . . . Allies Hacked . | . . . Hacks Repelled . | . . . Allies | -11 -10 -9 -------- Run | Scr Mat Mat Total Allies . | . . . Largest Group . | . . . Highest-Rated Group . | . . . Highest-Rated Ally . | . . . Total Orders . | . . . Ally Attacks . | . . . Total Damage . | . . . Kills . | . . . Allies Corrupted . | . . . Allies Melted . | . . . Intel | -11 -10 -9 ------- Run | Scr Mat Mat Robot Analysis Total . | . . . Derelict Logs Recovered . | . . . Drone Launches . | . . . Drone Recoveries . | . . . Exploration | -11 -10 -9 ------------- Run | Scr Mat Mat Turns Passed 927 | 90 576 261 Spaces Moved 540 | 67 355 118 Core 21 | 18 2 1 Treads 93 | . . 93 Legs 426 | 49 353 24 Wheels . | . . . Hover . | . . . Flight . | . . . Fastest Speed 50 | 50 120 120 Average Speed 132 | 101 129 159 Slowest Speed 250 | 120 250 170 Overloaded Moves . | . . . Propulsion Burnouts . | . . . Robots Hopped . | . . . Cave-ins Triggered 1 | . . 1 Exploration Rate (%) 34 | 5 72 25 Regions Visited 2 Branch Regions . Pre-discovered Areas . | . . . Known Exits Taken . | . . . Unknown Exits Taken 2 | 1 1 . Scrap Searched . | . . . Spaces Dug . | . . . Terrain Destroyed 97 | . 61 36 Melee . | . . . Projectile . | . . . AOE 97 | . 61 36 Terrain Rammed . | . . . Walls Destroyed . | . . . Machines Disabled . | . . . Actions | -11 -10 -9 --------- Run | Scr Mat Mat Total 652 | 81 406 165 Wait . | . . . Move 538 | 66 354 118 Hop . | . . . Pick Up 16 | 6 5 5 Fast Attach 4 | 1 . 3 Attach 13 | 4 2 7 Detach . | . . . Swap 7 | . 3 4 Drop 5 | . 1 4 Fire 60 | 4 41 15 Melee . | . . . Ram 1 | . . 1 Kick 2 | . . 2 Crush 6 | . . 6 Escape Stasis . | . . . Rewire . | . . . Trap . | . . . Miscellaneous . | . . . Route ------- -11/Scrapyard -10/Materials (discovered 2 exits: [*Mat x2]) -9/Materials History --------- Turn | Location | Event 2 | -11/Scrapyard | Met Revision 17 57 | -11/Scrapyard | Discovered new exit (range 8) 91 | -11/Scrapyard | Entered Materials 181 | -10/Materials | Discovered new exit (range 16) 300 | -10/Materials | Build established: Mutant 478 | -10/Materials | Core integrity fell below 50% 649 | -10/Materials | Discovered new exit (range 16) 667 | -10/Materials | Entered another Materials area 667 | -9/Materials | Evolved 2 slots: Power x1, Propulsion x1 811 | -9/Materials | Crushed by falling debris 868 | -9/Materials | Core integrity fell below 50% 922 | -9/Materials | Core integrity fell below 20% 928 | -9/Materials | Destroyed by S-10 Pest with Light Assault Rifle Last Messages --------------- Arm. Treads destroyed. S-10 Pest destroyed. K-01 Serf collects debris. Lgt. Assault Rifle destroyed. Imp. Ion Engine destroyed. K-01 Serf collects debris. Arm. Treads destroyed. K-01 Serf cleans the Fusion Modulator. S-10 Pest destroyed. Crushed K-01 Serf. K-01 Serf destroyed. Slammed into S-10 Pest. Arm. Treads destroyed. U5XFWSWQBCI&5IZSX3QN Slammed into S-10 Pest. S-10 Pest destroyed. Acquired 20 matter. K-01 Serf collects debris. Slammed into G-34 Mercenary. O-16 Technician: "IFF HANDSHAKE FAILED. SECURING TERMINAL." Map ----- +----------------------------------------------------+ | ??????????????????????????????#"""???# #? | | ?????????????????????????????##"T"#### ?? | | ????????????????????????? ?? #?? | | ????????????????????????? ? #?? | | ????????????????????????? " """"" "" +?? | | ??????????????????????# """"""""" % T" #?? | | ??????????????????????# """ """ "" #?? | | ??????????????????????# #?? | | ??????????????????????# #?? | | ???????????????????? #?? | | ???????????????????? #?? | | ????????????????????? #######+#### ##? | | ?????????????????? ????? ?# # #? | | ????????????????? ???? ## # #? | | ?????????????????? ??? + %* #* #? | | ?????????????????? g ?? ## #%= #? | | ??????????????????"" """ ## """ """ + #? | | ?????????????????""" """ ## """ """ # #? | | ???????????????? """ """ ## """ """ ##+######### | | ?????????????#" """ o g+ = # ## | | ??????????????# """ ######/##### ## | | ??????????????# #????# #???# ## | | ????????????????? #??### ###?# ## | | ????????????????????# ks#??# #######+### | | ????????????????????# gg ####Y s s # "" | | ????????????????????+ g@ s + "" | | ????????????????????####/###### # "" | | ?????????????????????? ?????# ######### # | | ?????????????????????# ??????## ##???????# # | | ?????????????????????# ???????# ########## + | | ?????????????????????# ????????# # # # | | ?????????????????????# ????????# # "" # #### | | ?????????????????????#?????????# # "" # | | ???????????????????????????????### #[ " %= # | | ?????????????????????????????????? # = [%# # | | ?????????????????????????????????? # # | | ?????????????????????????????????? # ! " # # | | ?????????????????????????????????? # "" # # | | ?????????????????????????????????? #! % + # | | ???????????????????????????????????#####+####### # | | ??????????????????????????????????????? "????### # | | ?????????????????????????????????????? ??##### # | | ?????????????????????????????????????? ??# # | | ??????????????????????????????????????###??# # ! | | ???????????????????????????????????????????# | | ???????????????????????????????? #?????????## ! | | ?????????????????????????????????/ ????????# | | ?????????????????????????????????# ???????# | | ?????????????????????????????????# ?####### | | ?????????????????????????????????# ## ### | +----------------------------------------------------+ Best States ------------- Heat Dissipation 28 Energy Generation 17 Energy Capacity 290 Matter Stores 300 Matter Capacity 300 Sight Range 16 Terrain Scan Density 10 ECM Strength 1 Evasion (%) 50 Recoil Reduction 3 Item Schematics ----------------- None Robot Schematics ------------------ None Fabricated ------------ Nothing Alien Tech Used ----------------- None Achievements -------------- None Challenges ------------ None Game ------ Seed GuidedModifiedBeam Manual? 0 Play Time 00:12:38 Cumulative 9.3 hours Start 2021.07.30 @ 17:08:27 End 2021.07.30 @ 17:18:01 Sessions 1 Manual Loads 0 Difficulty Rogue Special Mode None Game No. 11 Rogue 11 Adventurer 0 Explorer 0 Win Type - Total 0 Types 0/0/0/0/0/0/0/0/0 Lore% 19 Gallery% 15 Achievement% 16 Wizard Run 0 Options --------- ASCII 0 Keyboard 0 Movement Arrows Keybinds 0 Fullscreen 1 Font 18/SmallcapsGlow Map View 76x50 Tactical HUD 0 Map Filters NONE Filters NONE Steam 1 RUN: 456ff2dd-5683-441c-9d67-3377eeb4b1d7